Cogmind - Beta 13 @@@ ROGUE MODE // 2024.04.03 @ 14:06:56 Player: Sketchy Result: Destroyed by Y-45 Defender with Heavy Assault Rifle Performance ------------- Evolutions (1) 500 Regions Visited (2) 400 Robots Destroyed (25) 125 Value Destroyed (539) 539 Prototype IDs (0) 0 Alien Tech Used (0) 0 Bonus (0) 0 TOTAL SCORE: 1564 Bonus ------- None Cogmind --------- Core Integrity 0/400 Matter 176/300 Energy 100/100 System Corruption 0% Temperature Cool (9) Movement Core (1350) Ox26 Location -9/Materials Parts ------- > --- POWER (1) -------- (None) > --- PROPULSION (3) --- (None) > --- UTILITY (2) ------ Huge Storage Unit > --- WEAPON (3) ------- (None) > --- INVENTORY (25) --- Visual Processing Unit Sensor Array Hardened Light Armor Plating Hardened Light Armor Plating Hardened Light Armor Plating Hardened Light Armor Plating Hardened Light Armor Plating Hardened Light Armor Plating Rocket Launcher Datajack Peak State ------------ > --- POWER ------------ Light Ion Engine > --- PROPULSION ------- Improved Treads Improved Treads Improved Treads > --- UTILITY ---------- Huge Storage Unit Hardened Light Armor Plating > --- WEAPON ----------- Light EM Pulse Cannon Rocket Launcher Rocket Launcher > --- INVENTORY -------- Sensor Array Hardened Light Armor Plating Hardened Light Armor Plating Hardened Light Armor Plating Hardened Light Armor Plating Hardened Light Armor Plating Hardened Light Armor Plating Rocket Launcher Datajack [Rating: 17] Favorites ----------- Power Light Ion Engine Engine Light Ion Engine Propulsion Light Treads Treads Light Treads Utility Huge Storage Unit Storage Huge Storage Unit Protection Hardened Light Armor Plating Weapon Assault Rifle Energy Gun EM Pulse Gun Energy Cannon Light EM Pulse Cannon Ballistic Gun Assault Rifle Launcher Rocket Launcher Build | -11 -10 -9 ------- Run | Yrd Mat Mat Slots Evolved 2 | . . 2 Power . | . . . Propulsion 1 | . . 1 Utility . | . . . Weapon 1 | . . 1 Parts Attached 23 | 5 10 8 Power 3 | 1 . 2 Engine 3 | 1 . 2 Core . | . . . Reactor . | . . . Propulsion 6 | 2 2 2 Treads 6 | 2 2 2 Leg . | . . . Wheel . | . . . Hover . | . . . Flight . | . . . Utility 4 | . 4 . Device . | . . . Storage 2 | . 2 . Processor . | . . . Hackware . | . . . Protection 2 | . 2 . Artifact . | . . . Weapon 10 | 2 4 4 Energy Gun 1 | 1 . . Energy Cannon 1 | . . 1 Ballistic Gun 5 | 1 4 . Ballistic Cannon . | . . . Launcher 3 | . . 3 Special Weapon . | . . . Impact Weapon . | . . . Slashing Weapon . | . . . Piercing Weapon . | . . . Special Melee Weapon . | . . . Unidentified Prototypes . | . . . Parts Lost 10 | . . 10 Power 1 | . . 1 Propulsion 3 | . . 3 Utility 1 | . . 1 Weapon 5 | . . 5 Highest Loss Streak 8 | . . 8 To Critical Strikes . | . . . Average Slot Usage (%) 91 | . 97 78 Engine 11 | . 14 7 Treads 28 | . 27 30 Storage 12 | . 13 11 Protection 11 | . 12 8 Energy Gun 4 | . 7 . Energy Cannon 1 | . . 4 Ballistic Gun 17 | . 20 10 Launcher 1 | . . 5 Naked Turns . | . . . Heaviest Build 100 | 7 92 100 Greatest Support 69 | 40 46 69 Greatest Overweight (x) 2 | . 2 1 Average Overweight (x) 1 | . 1 1 Largest Inventory Capacity 25 | 5 25 25 Average Capacity 23 | 5 23 25 Most Carried 20 | 3 20 15 Average Carried 13 | 1 15 11 Final Capacity 25 | 5 25 25 Final Carried 14 | 1 14 10 Class Distribution -------------------- 95% | Mutant 4% | Tank Dominant Class ---------------- Mutant | -10/Materials Mutant | -9/Materials Resources | -11 -10 -9 ----------- Run | Yrd Mat Mat Matter Collected 474 | 167 230 77 Remotely . | . . . Salvage Created 541 | . 393 148 Parts 51 | . 31 20 Haulers Intercepted . | . . . Recyclers Shooed . | . . . Parts Field Recycled . | . . . Retrieved Matter . | . . . Parts Self-Destructed . | . . . Prevented . | . . . Kills | -11 -10 -9 ------- Run | Yrd Mat Mat Combat Hostiles Destroyed 20 | . 13 7 Melee 3 | . 2 1 Guns 11 | . 10 1 Cannons 2 | . . 2 AOE 4 | . 1 3 Classes Destroyed 4 | . 4 . Operator 1 | . 1 . Watcher 4 | . 1 3 Swarmer 11 | . 6 5 Grunt 9 | . 7 2 Best Kill Streak 4 | . 4 4 Combat Bots Only 3 | . 3 2 Max Kills in Single Turn 2 | . 2 2 Gunslinging 1 | . 1 . Exploded 1 | . 1 1 Melee 1 | . 1 1 Uniques/NPCs Destroyed . | . . . Combat | -11 -10 -9 -------- Run | Yrd Mat Mat Hostile Shots Fired 291 | . 94 197 Missed 78 | . 32 46 Damage Taken 2340 | . 598 1742 Core 481 | . 69 412 Absorbed by Shields . | . . . Core Remaining (%) 86 | 100 72 . Volleys Fired 72 | . 39 33 Largest 2 | . 2 2 Hottest 89 | . 60 89 Shots Fired 130 | . 78 52 Gun 110 | . 78 32 Cannon 16 | . . 16 Launcher 4 | . . 4 Special . | . . . Kinetic 100 | . 68 32 Thermal . | . . . Explosive 4 | . . 4 Electromagnetic 26 | . 10 16 Robot Hit Streak 7 | . 7 4 Robot Miss Streak 5 | . 5 5 Penetration Max . | . . . Secondary Targets 2 | . 2 . Max Gunslinging Chain 1 | . 1 . Shots Hit Robots 58 | . 38 20 Core Hits 31 | . 16 15 Critical Kills . | . . . Critical Parts Destroyed . | . . . Critical Strikes 2 | . 1 1 Corrupt 2 | . 1 1 Melee Attacks . | . . . Impact . | . . . Slashing . | . . . Piercing . | . . . Sneak Attacks . | . . . Combat Hostiles . | . . . Follow-up Attacks . | . . . Damage Inflicted 1132 | . 538 594 Guns 672 | . 487 185 Cannons 141 | . . 141 Explosions 154 | . 30 124 Melee . | . . . Ramming 165 | . 21 144 Kinetic 590 | . 405 185 Thermal 30 | . 30 . Explosive 124 | . . 124 Electromagnetic 223 | . 82 141 Impact . | . . . Slashing . | . . . Piercing . | . . . Highest Corruption . | . . . Average Corruption . | . . . Corruption Purged . | . . . Corruption Blocked . | . . . Overload Shots . | . . . Overflow Damage . | . . . Projectiles . | . . . Explosions . | . . . Melee . | . . . Knockbacks 1 | . 1 . Impact 1 | . 1 . Kinetic . | . . . Secondary . | . . . Self-Inflicted Damage 82 | . . 82 Shots 3 | . . 3 Rammed 43 | . 7 36 Targets Rammed 47 | . 9 38 Kicked . | . . . Crushed 4 | . 2 2 Highest Temperature 80 | . 51 80 Average Temperature 20 | . 15 23 Received Heat Transfer 579 | . 162 417 Siege Activations . | . . . Robots Corrupted . | . . . Combat Hostiles . | . . . Parts Fried . | . . . Impact Corruptions . | . . . Robots Melted . | . . . Combat Hostiles . | . . . Parts Melted . | . . . Heat Transferred 50 | . 50 . Parts Sabotaged . | . . . Parts Stolen . | . . . Parts Stripped . | . . . Power Chain Reactions 1 | . 1 . Alert | -11 -10 -9 ------- Run | Yrd Mat Mat Peak Influence 289 | . 195 289 Initial 48 | . . 48 Average 87 | . 69 136 Maximum Alert Level 1 | . . 1 Low Security (%) 90 | 100 100 71 Level 1 9 | . . 28 Level 2 . | . . . Level 3 . | . . . Level 4 . | . . . Level 5 . | . . . High Security . | . . . Max Security . | . . . Squads Dispatched 3 | . 3 . Investigation 2 | . 2 . Extermination . | . . . Reinforcement 1 | . 1 . Assault . | . . . Garrison . | . . . Intercept . | . . . Searches Triggered . | . . . Construction Impeded . | . . . Haulers Reinforced . | . . . Active Scanning Responses . | . . . Cargo Convoy Interrupts . | . . . Stealth | -11 -10 -9 --------- Run | Yrd Mat Mat Distress Signals 3 | . 1 2 Communications Jammed . | . . . Distress Signals . | . . . Times Spotted 36 | . 19 17 Peak Tracking Total 7 | . 5 7 Tactical Retreats 2 | . 1 1 Traps | -11 -10 -9 ------- Run | Yrd Mat Mat Traps Triggered . | . . . Indirectly . | . . . Trap Hack Attempts . | . . . Triggered . | . . . Disarmed . | . . . Reprogrammed . | . . . Reused . | . . . Traps Extracted . | . . . Installed . | . . . Triggered . | . . . Machines | -11 -10 -9 ---------- Run | Yrd Mat Mat Machines Disabled 3 | . . 3 Max in Single Turn 1 | . . 1 Machines Repaired . | . . . Machines Dismantled . | . . . Machines Sabotaged . | . . . Overloaded Fab Kills . | . . . Hacking | -11 -10 -9 --------- Run | Yrd Mat Mat Machines Accessed 3 | . 3 . Terminals 2 | . 2 . Fabricators . | . . . Repair Stations . | . . . Recycling Units 1 | . 1 . Scanalyzers . | . . . Garrison Access . | . . . Total Hacks 11 | . 11 . Successful 5 | . 5 . Failed 6 | . 6 . Catastrophic . | . . . Database Lockouts . | . . . Manual . | . . . Terminals 7 | . 7 . Fabricators . | . . . Repair Stations . | . . . Recycling Units 4 | . 4 . Scanalyzers . | . . . Garrison Access . | . . . Terminal Hacks 4 | . 4 . Robot Analysis 1 | . 1 . Maintenance Status 1 | . 1 . Recall Reinforcements 1 | . 1 . Zone Layout 1 | . 1 . Fabricator Hacks . | . . . Repair Station Hacks . | . . . Recycling Unit Hacks 1 | . 1 . Retrieve Components 1 | . 1 . Scanalyzer . | . . . Garrison Access Hacks . | . . . Unauthorized Hacks . | . . . Terminals . | . . . Fabricators . | . . . Repair Stations . | . . . Recycling Units . | . . . Scanalyzers . | . . . Garrison Access . | . . . Data Cores Recovered . | . . . Used . | . . . Hacking Detections 3 | . 3 . Full Trace Events 2 | . 2 . Feedback Events . | . . . Feedback Blocked . | . . . Robot Schematics Acquired . | . . . Robots Built . | . . . Authchips . | . . . Time . | . . . Total Robot Build Rating . | . . . Part Schematics Acquired . | . . . Parts Built . | . . . Authchips . | . . . Time . | . . . Total Part Build Rating . | . . . Parts Repaired . | . . . Time . | . . . Parts Recycled . | . . . Recycled Matter . | . . . Retrieved Matter . | . . . Retrieved Components 8 | . 8 . Parts Scanalyzed . | . . . Part Schematics Acquired . | . . . Parts Damaged . | . . . Bothacking | -11 -10 -9 ------------ Run | Yrd Mat Mat Used RIF Installer . | . . . Robots Hacked . | . . . Non-combat . | . . . Combat . | . . . Robot Hacks Applied . | . . . Relay Couplers Released . | . . . Fabnet Peak Effective % . | . . . Robots Rewired . | . . . Allies Hacked . | . . . Hacks Repelled . | . . . Allies | -11 -10 -9 -------- Run | Yrd Mat Mat Total Allies . | . . . Largest Group . | . . . Highest-Rated Group . | . . . Highest-Rated Ally . | . . . Total Orders . | . . . Ally Attacks . | . . . Total Damage . | . . . Kills . | . . . Allies Corrupted . | . . . Allies Melted . | . . . Intel | -11 -10 -9 ------- Run | Yrd Mat Mat Robot Analysis Total 1 | . 1 . Derelict Logs Recovered . | . . . Drone Launches . | . . . Drone Recoveries . | . . . Exploration | -11 -10 -9 ------------- Run | Yrd Mat Mat Turns Passed 1424 | 68 904 452 Spaces Moved 377 | 41 237 99 Core 7 | 7 . . Treads 370 | 34 237 99 Legs . | . . . Wheels . | . . . Hover . | . . . Flight . | . . . Fastest Speed 50 | 50 160 240 Average Speed 269 | 141 303 240 Slowest Speed 320 | 160 320 240 Overloaded Moves . | . . . Propulsion Burnouts . | . . . Robots Hopped . | . . . Cave-ins Triggered . | . . . Exploration Rate (%) 17 | 3 35 14 Regions Visited 2 Branch Regions . Pre-discovered Areas . | . . . Known Exits Taken . | . . . Unknown Exits Taken 2 | 1 1 . Scrap Searched . | . . . Spaces Dug . | . . . Terrain Destroyed 27 | . 5 22 Melee . | . . . Projectile . | . . . AOE 27 | . 5 22 Terrain Rammed . | . . . Walls Destroyed . | . . . Machines Disabled . | . . . Actions | -11 -10 -9 --------- Run | Yrd Mat Mat Total 566 | 51 328 187 Wait 4 | . 3 1 Move 375 | 40 236 99 Hop . | . . . Pick Up 33 | 6 23 4 Fast Attach . | . . . Attach 21 | 5 8 8 Detach . | . . . Swap 2 | . 2 . Drop 12 | . 8 4 Fire 72 | . 39 33 Melee . | . . . Ram 3 | . . 3 Kick . | . . . Crush 44 | . 9 35 Escape Stasis . | . . . Rewire . | . . . Trap . | . . . Miscellaneous . | . . . Route ------- -11/Scrapyard -10/Materials (discovered 2 exits: [*Mat] / [*Min]) -9/Materials History --------- Turn | Location | Event 29 | -11/Scrapyard | Discovered new exit (range 15) 69 | -11/Scrapyard | Entered Materials 301 | -10/Materials | Build established: Mutant 578 | -10/Materials | Discovered new exit (range 16) 817 | -10/Materials | Discovered new exit (range 8) 973 | -10/Materials | Entered another Materials area 973 | -9/Materials | Evolved 2 slots: Propulsion x1, Weapon x1 1382 | -9/Materials | Core integrity fell below 50% 1411 | -9/Materials | Core integrity fell below 20% 1425 | -9/Materials | Destroyed by Y-45 Defender with Heavy Assault Rifle Last Messages --------------- 01390_ Imp. Treads destroyed. 01391_ R-06 Scavenger collects Corrupted Lgt. Ion Engine. 01392_ K-01 Serf collects debris. 01393_ Slammed into Y-45 Defender. 01396_ K-01 Serf collects debris. 01396_ Imp. Treads destroyed. 01397_ Slammed into Y-45 Defender. 01399_ R-06 Scavenger collects Corrupted Lgt. Assault Rifle. 01399_ K-01 Serf collects debris. 01402_ M-13 Machinist repairs Y-45 Defender. 01403_ K-01 Serf collects debris. 01404_ M-13 Machinist repairs Heat Sink. 01406_ M-13 Machinist repairs Lgt. Armor Plating. 01406_ K-01 Serf collects debris. 01410_ Slammed into Y-45 Defender. 01411_ K-01 Serf collects debris. 01424_ Slammed into Y-45 Defender. Map ----- +----------------------------------------------------+ | ???????????# # #????????????????# #???????? | | ???????????# # #????????????????# #???????? | | ######+##### # #????????????????# #???????? | | + # #????????????????# ??????? | | ######* ##???????????????# ###?????? | | = = * ########????????# #???????? | | ###########] % #????????# #???????? | | ??????????## # ==* #????????# #???????? | | ???????????#### * #????????# #???????? | | ??????????????## ### #????????# #???????? | | ???????????????#######?# #????????# +???????? | | ???????????????????????# #????????# #???????? | | ???????????????????????# #????????# #???????? | | ???????????????????????# ########## #???????? | | ???????????????????????# ????????? | | ???????????????????????# ##### #??## ????????? | | ???????????????????????#% #?????????? ????????? | | ???????????????????????#* #???????????????????? | | ???????????????????????# #???????????????????? | | ???????????????????????# #???????????????????? | | ????????????????####???# #???????????????????? | | ???????????????? ??# #???????????????????? | | ???????????????? """ ?# #???????????????????? | | ???????????????? """ # ###+####### ###?????? | | ??????????????# """ # % #?????? | | ??????????????# + @k = +?????? | | ??????????????# """ ] # Yk"" #?????? | | ???????????????? """ ??# [m ###+###??????? | | ???????????????? ""????# # #??????? | | ???????????????? ??????# !! # #??????? | | ???????????????????????# !! # " #??????? | | ???????? ############### ![ #?""" #??????? | | ??????? #??""????????? | | ??????? #????????????? | | ??????? ######+##????????????? | | ?????????############+#######?????? ????????????? | | ????????????????????????????????????? ??????????? | | ???????????????????????????????????????#?????????? | | ?????????????????????????????????????????????????? | | ?????????????????????????????????????????????????? | | ?????????????????????????????????????????????????? | | ?????????????????????????????????????????????????? | | ?????????????????????????????????????????????????? | | ?????????????????????????????????????????????????? | | ?????????????????????????????????????????????????? | | ?????????????????????????????????????????????????? | | ?????????????????????????????????????????????????? | | ?????????????????????????????????????????????????? | | ?????????????????????????????????????????????????? | | ?????????????????????????????????????????????????? | +----------------------------------------------------+ Best States ------------- Heat Dissipation 28 Energy Generation 10 Energy Capacity 250 Matter Stores 300 Matter Capacity 300 Sight Range 16 Terrain Scan Density 10 Armor Coverage 150 Evasion (%) 40 Recoil Reduction 3 Item Schematics ----------------- None Robot Schematics ------------------ None Fabricated ------------ Nothing Alien Tech Used ----------------- None Achievements -------------- None Challenges ------------ None Game ------ Seed ChipVisualPod Manual? 0 Play Time 00:19:49 Cumulative 3.8 hours Start 2024.04.03 @ 13:52:03 End 2024.04.03 @ 14:06:56 Sessions 1 Manual Loads 0 Difficulty Rogue Special Mode None Game No. 10 Rogue 10 Adventurer 0 Explorer 0 Win Type - Total 0 Types 0/0/0/0/0/0/0/0/0 Lore% 1 Gallery% 10 Achievement% 7 Wizard Run 0 Options --------- Layout 1 ASCII 0 Keyboard 0 Movement Arrows Keybinds 0 Fullscreen 1 Font 16/SmallcapsGlow Map View 50x40 Zoom Use 0% Tactical HUD 1 Map Filters NONE Filters NONE Steam SD RUN: 4d3620af-9f1e-4f49-9a5c-6912dbc67010